[Event "3rd Matrix Cup 2024"]
[Site "New Delhi"]
[Date "2024.04.07"]
[Round "1.1"]
[White "Aronyak Ghosh"]
[Black "Richard, Samuel"]
[Result "1-0"]
[ECO "A29"]
[WhiteElo "2517"]
[BlackElo "1737"]
[Annotator "TA"]
[PlyCount "43"]
[EventDate "2024.04.07"]
[EventType "swiss"]
[EventCountry "IND"]
[SourceTitle "playchess.com"]
[Source "ChessBase"]
[SourceQuality "1"]
[TimeControl "5400+30"]

{[%evp 14,42,49,45,45,18,31,13,34,35,29,11,23,15,53,60,56,56,115,114,114,118,113,59,119,122,177,187,269,209,29999]} 1. c4 {[%emt 0:01:03]} e5 {[%emt 0:01:16]} 2. Nc3 {[%emt 0:00:28]} Nf6 {[%emt 0:00:30]} 3. Nf3 {[%emt 0:00:35]} Nc6 {[%emt 0:00:23]} 4. g3 {[%emt 0:00:29]} d6 {[%emt 0:00:42]} 5. d4 {[%emt 0:00:56]} exd4 {[%emt 0:00:34]} 6. Nxd4 {[%emt 0:00:13]} Be7 {[%emt 0:01:03]} 7. Bg2 {[%emt 0:00:20]} Nxd4 {[%emt 0:02:52]} 8. Qxd4 {[%emt 0:00:03]} c6 {[%emt 0:01:19]} 9. Bf4 {[%emt 0:00:30]} Qb6 {[%emt 0:00:53]} 10. O-O-O {[%emt 0:01:57]} Qxd4 {[%emt 0:00:51] The position is equal.} 11. Rxd4 {[%emt 0:00:02]} Be6 {[%emt 0:02:52]} 12. b3 {[%emt 0:00:19]} O-O-O {[%emt 0:02:20]} 13. Rhd1 {[%emt 0:01:40]} Ne8 {[%emt 0:03:58]} 14. Ne4 {[%emt 0:04:25]} d5 {[%emt 0:03:13]} 15. cxd5 {[%emt 0:00:40]} Bxd5 {[%emt 0:08:29]} (15... Rxd5 $14 16. Rxd5 cxd5) 16. Bh3+ {[%emt 0:05:39]} (16. Ng5 {looks sharper.} Nc7 17. Bh3+ Be6 18. Rxd8+ Rxd8 19. Rxd8+ Bxd8 20. Bxe6+ Nxe6 21. Nxf7 Nxf4 22. gxf4 Bc7 23. e3) 16... Be6 {[%emt 0:00:42]} 17. Bxe6+ {[%emt 0:00:15]} (17. Rxd8+ {simplifies} Bxd8 18. Bxe6+ fxe6 19. Nc5) 17... fxe6 {[%emt 0:00:11] Black is weak on the dark squares} 18. Rxd8+ {[%emt 0:00:05]} Bxd8 {[%emt 0:00:29] [#]} 19. Nc5 $1 $36 {[%emt 0:00:04][%mdl 2048] Keeping Black busy. White is much more active. The black rooks are passive.} Bc7 {[%emt 0:03:51]} (19... Nc7 $16) 20. Nxe6 $18 {[%emt 0:00:44]} g6 {[%emt 0:02:45]} (20... Bb6 {was called for.} 21. f3 Rg8) 21. Kc2 {[%emt 0:00:31]} Bxf4 $2 {[%emt 0:02:34]} (21... Rg8 $18 22. e4 Bb6) 22. Rd8# {[%emt 0:00:09] Weighted Error Value: White=0.10 (very precise) /Black=0.77.  Mistake:       	---       	Black=4      Inaccurate:     	White=1     	Black=2      OK:         	White=2     	Black=4      Best:        	White=3     	Black=1      Strong:       	White=1     	---} 1-0

[Event "3rd Matrix Cup 2024"]
[Site "New Delhi"]
[Date "2024.04.07"]
[Round "1.2"]
[White "Shashwat Singh"]
[Black "Neelash Saha"]
[Result "0-1"]
[ECO "B12"]
[WhiteElo "1524"]
[BlackElo "2464"]
[Annotator "TA"]
[PlyCount "92"]
[EventDate "2024.04.07"]
[EventType "swiss"]
[EventCountry "IND"]
[SourceTitle "playchess.com"]
[Source "ChessBase"]
[SourceQuality "1"]
[TimeControl "5400+30"]

{[%evp 11,91,0,16,-9,-2,-56,-45,-40,-33,-79,-69,-105,-94,-87,-95,-97,-85,-105,-93,-103,-43,-49,-29,-165,-128,-235,-245,-260,-220,-220,-222,-282,-262,-260,-264,-369,-311,-466,-465,-572,-576,-607,-603,-632,-633,-708,-695,-939,-834,-1195,-1187,-29985,-1037,-29986,-29987,-29987,-29988,-29988,-29989,-29989,-29990,-29990,-29988,-29988,-29989,-29989,-29989,-29990,-29990,-29989,-29990,-29992,-29993,-29994,-29995,-29995,-29996,-29996,-29997,-29998,-29999,-29999]} 1. e4 {[%emt 0:00:03]} c6 {[%emt 0:00:06]} 2. d4 {[%emt 0:00:13]} d5 {[%emt 0:00:02]} 3. e5 {[%emt 0:00:18]} Bf5 {[%emt 0:00:05]} 4. Bd3 {[%emt 0:00:18]} Bxd3 {[%emt 0:01:13]} 5. Qxd3 {[%emt 0:00:05]} e6 {[%emt 0:00:04]} 6. Nf3 {[%emt 0:00:38]} Ne7 {[%emt 0:00:21][%cal Oc6c5]} 7. Bg5 {[%emt 0:01:02]} h6 {[%emt 0:00:49]} 8. Bh4 {[%emt 0:00:56]} (8. Bxe7 $11 Bxe7 9. O-O) 8... Qa5+ {[%emt 0:01:36]} 9. c3 {[%emt 0:01:40] Black is slightly better.} Nf5 {[%emt 0:00:09]} 10. b4 {[%emt 0:01:37]} (10. Bg3 $15) 10... Qb6 {[%emt 0:00:31]} 11. O-O {[%emt 0:00:45]} a5 {[%emt 0:00:43]} 12. bxa5 {[%emt 0:01:06]} Qxa5 {[%emt 0:02:45]} 13. Nbd2 {[%emt 0:03:22]} b5 {[%emt 0:00:25]} 14. g4 {[%emt 0:03:10]} Nxh4 {[%emt 0:01:21]} 15. Nxh4 {[%emt 0:00:03]} Be7 {[%emt 0:00:16]} (15... Qd8 $17 16. Ng2 h5) 16. Ng2 $15 {[%emt 0:04:31]} h5 {[%emt 0:01:34]} 17. f3 {[%emt 0:10:47] This costs White the game.} (17. f4 $11 {and White stays safe.} hxg4 18. Qg3) 17... Nd7 {[%emt 0:00:40]} 18. h3 {[%emt 0:08:55]} (18. g5 $17) 18... Qb6 $19 {[%emt 0:00:50]} 19. Rfb1 {[%emt 0:06:24]} Ra3 {[%emt 0:05:12]} 20. Rb3 {[%emt 0:04:34]} Nxe5 {[%emt 0:01:20]} 21. Qe2 {[%emt 0:02:26]} Nd7 {[%emt 0:00:23] White must now prevent ...hxg4.} 22. Rxa3 {[%emt 0:01:28]} Bxa3 {[%emt 0:00:05]} 23. Nb3 {[%emt 0:05:27]} Qc7 {[%emt 0:00:33] And now ...hxg4 would win.} 24. Qf2 {[%emt 0:01:54]} (24. Qe3 $142) 24... hxg4 {[%emt 0:00:13]} 25. h4 {[%emt 0:04:15]} Nf6 {[%emt 0:00:31][%cal Og7g5]} 26. f4 {[%emt 0:01:52]} Ne4 {[%emt 0:00:22]} 27. Qe2 {[%emt 0:01:12]} Rh6 {[%emt 0:01:06]} 28. Re1 {[%emt 0:04:01]} f5 {[%emt 0:00:29]} 29. Qd3 {[%emt 0:02:20]} Be7 {[%emt 0:00:28]} 30. Nd2 {[%emt 0:01:35]} Bxh4 {[%emt 0:00:23]} 31. Rf1 {[%emt 0:09:41] [#] Wards off Bf2+} Bf2+ $1 {[%emt 0:00:08]} 32. Rxf2 {[%emt 0:03:14] [#]} Rh1+ $3 {[%emt 0:00:05][%mdl 512] Black mates.} 33. Kxh1 {[%emt 0:01:35]} Nxf2+ {[%emt 0:00:05]} 34. Kg1 {[%emt 0:01:08]} Nxd3 {[%emt 0:00:06]} 35. Kf1 {[%emt 0:00:44]} Nxf4 {[%emt 0:00:08]} 36. Ne3 {[%emt 0:03:12]} Nh3 {[%emt 0:00:06]} 37. Ke2 {[%emt 0:00:50]} Qh2+ {[%emt 0:00:16]} 38. Kd1 {[%emt 0:01:08]} Nf2+ {[%emt 0:00:16]} 39. Ke1 {[%emt 0:01:17]} Nd3+ {[%emt 0:00:13]} 40. Kd1 {[%emt 0:00:08]} g3 {[%emt 0:00:09]} 41. Kc2 {[%emt 0:00:51]} Qe2 {[%emt 0:00:20]} 42. a3 {[%emt 0:00:35]} Qxe3 {[%emt 0:00:07]} 43. c4 {[%emt 0:01:06]} g2 {[%emt 0:00:14]} 44. c5 {[%emt 0:00:18]} g1=Q {[%emt 0:00:12]} 45. a4 {[%emt 0:00:30]} Qc1+ {[%emt 0:00:05]} 46. Kb3 {[%emt 0:00:30]} Qb2# {[%emt 0:00:02] Weighted Error Value: White=0.95/Black=0.12 (very precise) .  Mistake:       	White=5     	Black=1      Inaccurate:     	White=1     	---        OK:         	White=5     	Black=9} 0-1

[Event "3rd Matrix Cup 2024"]
[Site "New Delhi"]
[Date "2024.04.07"]
[Round "1.3"]
[White "Pawar, Harshit"]
[Black "Aarnav Rawat"]
[Result "1-0"]
[ECO "B23"]
[WhiteElo "2146"]
[BlackElo "1479"]
[Annotator "RC"]
[PlyCount "83"]
[EventDate "2024.04.07"]
[EventType "swiss"]
[EventCountry "IND"]
[SourceTitle "playchess.com"]
[Source "ChessBase"]
[SourceQuality "1"]
[TimeControl "5400+30"]

1. e4 {[%emt 0:00:09]} c5 {[%emt 0:00:09]} 2. Nc3 {[%emt 0:00:05]} d6 {[%emt 0:00:28]} 3. f4 {[%emt 0:00:09]} a6 {[%emt 0:02:26]} 4. Nf3 {[%emt 0:00:10]} Nc6 {[%emt 0:00:47]} 5. a4 {[%emt 0:02:35]} Nf6 {[%emt 0:03:02]} 6. Bc4 {[%emt 0:02:03]} e6 {[%emt 0:05:54]} 7. Ba2 {[%emt 0:01:22]} Be7 {[%emt 0:05:40]} 8. O-O {[%emt 0:00:25]} O-O {[%emt 0:00:31]} 9. d3 {[%emt 0:00:32]} Qb6 {[%emt 0:11:37]} 10. Kh1 {[%emt 0:01:44]} Nb4 {[%emt 0:01:37]} 11. Bb3 {[%emt 0:01:08]} d5 {[%emt 0:01:01]} 12. e5 {[%emt 0:00:53]} Nd7 {[%emt 0:01:24]} 13. Ne2 {[%emt 0:05:30]} Nc6 {[%emt 0:02:53]} 14. c3 {[%emt 0:00:52]} d4 {[%emt 0:05:06]} 15. Ba2 {[%emt 0:00:38]} Rd8 {[%emt 0:01:30]} 16. Ng3 {[%emt 0:02:30]} Nf8 {[%emt 0:02:33]} 17. Qe2 {[%emt 0:01:27]} Qc7 {[%emt 0:03:26]} 18. Bd2 {[%emt 0:02:48]} f6 {[%emt 0:03:11]} 19. cxd4 {[%emt 0:01:39]} Nxd4 {[%emt 0:03:26]} 20. Nxd4 {[%emt 0:00:07]} cxd4 {[%emt 0:00:07]} 21. exf6 {[%emt 0:00:28]} Bxf6 {[%emt 0:00:33]} 22. Ne4 {[%emt 0:01:01]} Kh8 {[%emt 0:04:27]} 23. Qh5 {[%emt 0:03:20]} Qe7 {[%emt 0:06:45]} 24. Rae1 {[%emt 0:03:48]} g6 {[%emt 0:04:39]} 25. Qe2 {[%emt 0:01:47]} Bg7 {[%emt 0:02:31]} 26. f5 {[%emt 0:00:49]} exf5 {[%emt 0:06:16]} 27. Bg5 {[%emt 0:00:28]} Qe5 {[%emt 0:00:43]} 28. Bxd8 {[%emt 0:01:19]} fxe4 {[%emt 0:00:33]} 29. Qxe4 {[%emt 0:00:07]} Qxe4 {[%emt 0:00:46]} 30. Rxe4 {[%emt 0:00:08]} Bf5 {[%emt 0:01:11]} 31. Re8 {[%emt 0:00:02]} h5 {[%emt 0:01:31]} 32. h3 {[%emt 0:02:11]} Kh7 {[%emt 0:01:15]} 33. Bc4 {[%emt 0:02:35]} Rc8 {[%emt 0:03:43]} 34. g4 {[%emt 0:00:27]} hxg4 {[%emt 0:00:27]} 35. hxg4 {[%emt 0:00:03]} Bxg4 {[%emt 0:01:06]} 36. Rfxf8 {[%emt 0:00:48]} Bxf8 {[%emt 0:00:55]} 37. Rxf8 {[%emt 0:00:02]} b5 {[%emt 0:00:57]} 38. axb5 {[%emt 0:00:19]} axb5 {[%emt 0:00:09]} 39. Bxb5 {[%emt 0:00:13]} Rc1+ {[%emt 0:01:05]} 40. Kg2 {[%emt 0:00:05]} Bf5 {[%emt 0:00:57]} 41. Bf6 {[%emt 0:00:17]} g5 {[%emt 0:00:48]} 42. Bxd4 {[%emt 0:00:05]} 1-0

[Event "3rd Matrix Cup 2024"]
[Site "New Delhi"]
[Date "2024.04.07"]
[Round "1.4"]
[White "Utkrisht Singh"]
[Black "Kumar, Gaurav"]
[Result "1/2-1/2"]
[ECO "E38"]
[WhiteElo "1479"]
[BlackElo "2083"]
[Annotator "RC"]
[PlyCount "85"]
[EventDate "2024.04.07"]
[EventType "swiss"]
[EventCountry "IND"]
[SourceTitle "playchess.com"]
[Source "ChessBase"]
[SourceQuality "1"]
[TimeControl "5400+30"]

1. d4 {[%emt 0:00:05]} Nf6 {[%emt 0:00:11]} 2. c4 {[%emt 0:00:15]} e6 {[%emt 0:00:08]} 3. Nc3 {[%emt 0:00:47]} Bb4 {[%emt 0:00:16]} 4. Qc2 {[%emt 0:01:15]} c5 {[%emt 0:05:28]} 5. Nf3 {[%emt 0:04:28]} cxd4 {[%emt 0:00:57]} 6. Nxd4 {[%emt 0:00:19]} Nc6 {[%emt 0:00:19]} 7. Nxc6 {[%emt 0:05:38]} bxc6 {[%emt 0:00:27]} 8. a3 {[%emt 0:03:01]} Be7 {[%emt 0:02:09]} 9. Bg5 {[%emt 0:06:38]} O-O {[%emt 0:02:11]} 10. e3 {[%emt 0:05:40]} d5 {[%emt 0:01:22]} 11. Bd3 {[%emt 0:03:18]} h6 {[%emt 0:00:09]} 12. Bh4 {[%emt 0:04:16]} e5 {[%emt 0:01:47]} 13. O-O {[%emt 0:06:17]} e4 {[%emt 0:23:31]} 14. Be2 {[%emt 0:02:18]} Qc7 {[%emt 0:01:39]} 15. Bg3 {[%emt 0:06:23]} Bd6 {[%emt 0:00:47]} 16. Bxd6 {[%emt 0:02:05]} Qxd6 {[%emt 0:00:03]} 17. Rfd1 {[%emt 0:01:29]} Qe5 {[%emt 0:00:17]} 18. cxd5 {[%emt 0:09:44]} cxd5 {[%emt 0:00:12]} 19. Qd2 {[%emt 0:02:17]} Be6 {[%emt 0:00:51]} 20. Qd4 {[%emt 0:06:01]} Qg5 {[%emt 0:00:24]} 21. Kh1 {[%emt 0:07:57]} Bg4 {[%emt 0:01:21]} 22. Qd2 {[%emt 0:02:06]} Rad8 {[%emt 0:07:19]} 23. Rac1 {[%emt 0:08:03]} Qh4 {[%emt 0:00:23]} 24. Kg1 {[%emt 0:02:08]} Qg5 {[%emt 0:02:08]} 25. Kh1 {[%emt 0:03:02]} Bxe2 {[%emt 0:00:20]} 26. Qxe2 {[%emt 0:00:35]} Ng4 {[%emt 0:00:11]} 27. h3 {[%emt 0:00:41]} Ne5 {[%emt 0:00:14]} 28. Rd4 {[%emt 0:04:01]} Nd3 {[%emt 0:00:40]} 29. Rd1 {[%emt 0:00:22]} Rfe8 {[%emt 0:00:57]} 30. Kg1 {[%emt 0:01:10]} h5 {[%emt 0:00:47]} 31. Na2 {[%emt 0:01:35]} Re6 {[%emt 0:00:28]} 32. h4 {[%emt 0:00:31]} Qf5 {[%emt 0:00:49]} 33. Nb4 {[%emt 0:00:28]} Ne5 {[%emt 0:04:33]} 34. Nxd5 {[%emt 0:01:39]} Rxd5 {[%emt 0:12:32]} 35. Rxd5 {[%emt 0:00:24]} Rg6 {[%emt 0:05:46]} 36. Rxe5 {[%emt 0:00:52]} Qxe5 {[%emt 0:00:11]} 37. g3 {[%emt 0:00:37]} Rg4 {[%emt 0:01:00]} 38. Kg2 {[%emt 0:00:25]} Qe7 {[%emt 0:00:44]} 39. Qd2 {[%emt 0:00:31]} Kh7 {[%emt 0:00:29]} 40. Qd8 {[%emt 0:00:33]} Qe6 {[%emt 0:02:33]} 41. Qf8 {[%emt 0:00:29]} Qf6 {[%emt 0:00:28]} 42. Rd8 {[%emt 0:00:32]} Qf3+ {[%emt 0:01:29]} 43. Kg1 {[%emt 0:00:24]} 1/2-1/2

[Event "3rd Matrix Cup 2024"]
[Site "New Delhi"]
[Date "2024.04.07"]
[Round "1.5"]
[White "Singh, Arvinder Preet"]
[Black "Abhigyan Mehta"]
[Result "1-0"]
[ECO "B76"]
[WhiteElo "2064"]
[BlackElo "1478"]
[Annotator "RC"]
[PlyCount "55"]
[EventDate "2024.04.07"]
[EventType "swiss"]
[EventCountry "IND"]
[SourceTitle "playchess.com"]
[Source "ChessBase"]
[SourceQuality "1"]
[TimeControl "5400+30"]

1. e4 {[%emt 0:00:03]} c5 {[%emt 0:00:19]} 2. Nf3 {[%emt 0:00:05]} d6 {[%emt 0:00:08]} 3. d4 {[%emt 0:00:04]} cxd4 {[%emt 0:00:09]} 4. Nxd4 {[%emt 0:00:04]} Nf6 {[%emt 0:00:10]} 5. Nc3 {[%emt 0:00:04]} g6 {[%emt 0:00:07]} 6. Be3 {[%emt 0:00:15]} Bg7 {[%emt 0:00:17]} 7. f3 {[%emt 0:00:06]} O-O {[%emt 0:00:20]} 8. Qd2 {[%emt 0:00:06]} Nc6 {[%emt 0:00:41]} 9. O-O-O {[%emt 0:00:19]} Bd7 {[%emt 0:01:18]} 10. g4 {[%emt 0:03:25]} a6 {[%emt 0:03:50]} 11. h4 {[%emt 0:00:39]} h5 {[%emt 0:02:37]} 12. Nd5 {[%emt 0:21:45]} Rc8 {[%emt 0:24:24]} 13. Nxf6+ {[%emt 0:02:27]} Bxf6 {[%emt 0:00:47]} 14. gxh5 {[%emt 0:00:08]} Qc7 {[%emt 0:09:11]} 15. Nxc6 {[%emt 0:01:29]} Bxc6 {[%emt 0:03:29]} 16. hxg6 {[%emt 0:00:24]} fxg6 {[%emt 0:03:50]} 17. Bc4+ {[%emt 0:01:44]} d5 {[%emt 0:03:51]} 18. exd5 {[%emt 0:05:18]} Bb5 {[%emt 0:01:50]} 19. Bxb5 {[%emt 0:04:43]} axb5 {[%emt 0:01:08]} 20. Qd3 {[%emt 0:00:18]} Kf7 {[%emt 0:04:23]} 21. h5 {[%emt 0:00:52]} Rg8 {[%emt 0:00:31]} 22. hxg6+ {[%emt 0:00:45]} Rxg6 {[%emt 0:00:37]} 23. Rh7+ {[%emt 0:00:25]} Bg7 {[%emt 0:03:23]} 24. Qf5+ {[%emt 0:02:49]} Rf6 {[%emt 0:01:05]} 25. Rxg7+ {[%emt 0:00:35]} Kxg7 {[%emt 0:00:32]} 26. Rg1+ {[%emt 0:00:06]} Kf7 {[%emt 0:01:51]} 27. Qh5+ {[%emt 0:00:21]} Kf8 {[%emt 0:00:47]} 28. Qh8+ {[%emt 0:00:12]} 1-0

[Event "3rd Matrix Cup 2024"]
[Site "New Delhi"]
[Date "2024.04.07"]
[Round "1.6"]
[White "Aarush Mathur"]
[Black "Ram Prakash, R."]
[Result "0-1"]
[ECO "E91"]
[WhiteElo "1477"]
[BlackElo "2191"]
[Annotator "RC"]
[PlyCount "74"]
[EventDate "2024.04.07"]
[EventType "swiss"]
[EventCountry "IND"]
[SourceTitle "playchess.com"]
[Source "ChessBase"]
[SourceQuality "1"]
[TimeControl "5400+30"]

1. e4 {[%emt 0:00:10]} c6 {[%emt 0:00:18]} 2. d4 {[%emt 0:00:17]} g6 {[%emt 0:00:20]} 3. c4 {[%emt 0:00:30]} Bg7 {[%emt 0:00:19]} 4. Nc3 {[%emt 0:00:52]} d6 {[%emt 0:00:11]} 5. Nf3 {[%emt 0:00:29]} Nf6 {[%emt 0:01:57]} 6. Be2 {[%emt 0:02:00]} O-O {[%emt 0:00:23]} 7. O-O {[%emt 0:00:38]} a6 {[%emt 0:01:41]} 8. Be3 {[%emt 0:02:00]} b5 {[%emt 0:00:58]} 9. b3 {[%emt 0:03:01]} b4 {[%emt 0:00:36]} 10. e5 {[%emt 0:05:37]} Ng4 {[%emt 0:09:24]} 11. Ne4 {[%emt 0:02:27]} dxe5 {[%emt 0:01:21]} 12. h3 {[%emt 0:04:05]} Nxe3 {[%emt 0:01:18]} 13. fxe3 {[%emt 0:01:38]} f5 {[%emt 0:03:58]} 14. Nc5 {[%emt 0:01:26]} Bh6 {[%emt 0:05:13]} 15. Qd2 {[%emt 0:01:50]} exd4 {[%emt 0:01:06]} 16. Qxd4 {[%emt 0:03:23]} Qxd4 {[%emt 0:03:08]} 17. exd4 {[%emt 0:00:09]} e5 {[%emt 0:00:26]} 18. Kf2 {[%emt 0:02:17]} exd4 {[%emt 0:02:05]} 19. Nxd4 {[%emt 0:02:06]} Re8 {[%emt 0:00:20]} 20. Nc2 {[%emt 0:00:06]} Ra7 {[%emt 0:01:12]} 21. Bf3 {[%emt 0:01:10]} Bf8 {[%emt 0:01:01]} 22. Nd3 {[%emt 0:04:18]} Rd7 {[%emt 0:03:07]} 23. Ncxb4 {[%emt 0:03:51]} a5 {[%emt 0:00:39]} 24. Nxc6 {[%emt 0:00:44]} Rxd3 {[%emt 0:00:31]} 25. Nxb8 {[%emt 0:00:39]} Bc5+ {[%emt 0:00:13]} 26. Kg3 {[%emt 0:01:03]} Bd6+ {[%emt 0:00:10]} 27. Kf2 {[%emt 0:00:09]} Rd2+ {[%emt 0:01:39]} 28. Kg1 {[%emt 0:00:22]} Bxb8 {[%emt 0:00:14]} 29. Rfe1 {[%emt 0:00:13]} Be5 {[%emt 0:04:06]} 30. a3 {[%emt 0:04:28]} Kf8 {[%emt 0:02:08]} 31. Rab1 {[%emt 0:00:30]} g5 {[%emt 0:02:17]} 32. b4 {[%emt 0:01:29]} g4 {[%emt 0:00:31]} 33. hxg4 {[%emt 0:01:03]} fxg4 {[%emt 0:00:07]} 34. Be4 {[%emt 0:01:59]} Bd4+ {[%emt 0:00:24]} 35. Kh2 {[%emt 0:01:54]} Bf2 {[%emt 0:00:13]} 36. b5 {[%emt 0:01:25]} g3+ {[%emt 0:00:11]} 37. Kh1 {[%emt 0:00:10]} Re6 {[%emt 0:00:53]} 0-1

[Event "3rd Matrix Cup 2024"]
[Site "New Delhi"]
[Date "2024.04.07"]
[Round "1.7"]
[White "Ishvi Aggarwal"]
[Black "Barolia, Arihan"]
[Result "1-0"]
[ECO "D11"]
[WhiteElo "1959"]
[BlackElo "1477"]
[Annotator "RC"]
[PlyCount "47"]
[EventDate "2024.04.07"]
[EventType "swiss"]
[EventCountry "IND"]
[SourceTitle "playchess.com"]
[Source "ChessBase"]
[SourceQuality "1"]
[TimeControl "5400+30"]

1. d4 {[%emt 0:00:03]} d5 {[%emt 0:00:23]} 2. c4 {[%emt 0:00:07]} c6 {[%emt 0:00:08]} 3. Nf3 {[%emt 0:00:04]} Nf6 {[%emt 0:00:30]} 4. g3 {[%emt 0:00:06]} Bg4 {[%emt 0:01:28]} 5. Ne5 {[%emt 0:00:08]} h5 {[%emt 0:03:32]} 6. Nxg4 {[%emt 0:00:34]} hxg4 {[%emt 0:00:16]} 7. Qb3 {[%emt 0:01:00]} b6 {[%emt 0:07:18]} 8. Bg2 {[%emt 0:00:16]} e6 {[%emt 0:00:44]} 9. Nc3 {[%emt 0:02:52]} Bd6 {[%emt 0:01:38]} 10. e4 {[%emt 0:01:44]} dxe4 {[%emt 0:03:55]} 11. Nxe4 {[%emt 0:00:43]} Bc7 {[%emt 0:00:15]} 12. Qa4 {[%emt 0:07:24]} O-O {[%emt 0:01:24]} 13. Nxf6+ {[%emt 0:08:24]} gxf6 {[%emt 0:00:18]} 14. Qd1 {[%emt 0:03:22]} f5 {[%emt 0:04:15]} 15. h3 {[%emt 0:00:26]} e5 {[%emt 0:03:39]} 16. d5 {[%emt 0:00:56]} e4 {[%emt 0:00:35]} 17. hxg4 {[%emt 0:01:17]} e3 {[%emt 0:03:28]} 18. Bxe3 {[%emt 0:04:07]} Re8 {[%emt 0:00:01]} 19. gxf5 {[%emt 0:03:13]} Qg5 {[%emt 0:00:10]} 20. Qd4 {[%emt 0:03:02]} f6 {[%emt 0:00:45]} 21. O-O-O {[%emt 0:00:41]} Qxf5 {[%emt 0:01:47]} 22. Bh3 {[%emt 0:00:38]} Qg6 {[%emt 0:01:09]} 23. Be6+ {[%emt 0:00:36]} Rxe6 {[%emt 0:01:08]} 24. dxe6 {[%emt 0:00:08]} 1-0

[Event "3rd Matrix Cup 2024"]
[Site "New Delhi"]
[Date "2024.04.07"]
[Round "1.8"]
[White "Shreyansh Alsisaria"]
[Black "Shubhi Gupta"]
[Result "0-1"]
[ECO "D36"]
[WhiteElo "1477"]
[BlackElo "1953"]
[Annotator "RC"]
[PlyCount "58"]
[EventDate "2024.04.07"]
[EventType "swiss"]
[EventCountry "IND"]
[SourceTitle "playchess.com"]
[Source "ChessBase"]
[SourceQuality "1"]
[TimeControl "5400+30"]

1. d4 {[%emt 0:00:25]} d5 {[%emt 0:01:51]} 2. c4 {[%emt 0:00:36]} e6 {[%emt 0:00:40]} 3. Nc3 {[%emt 0:00:43]} Nf6 {[%emt 0:00:30]} 4. Nf3 {[%emt 0:00:57]} Be7 {[%emt 0:00:47]} 5. Bg5 {[%emt 0:00:44]} Nbd7 {[%emt 0:00:39]} 6. e3 {[%emt 0:00:48]} O-O {[%emt 0:00:37]} 7. Bd3 {[%emt 0:01:00]} c6 {[%emt 0:01:02]} 8. cxd5 {[%emt 0:00:50]} exd5 {[%emt 0:00:47]} 9. Qc2 {[%emt 0:01:07]} Re8 {[%emt 0:02:08]} 10. O-O {[%emt 0:07:21]} h6 {[%emt 0:01:50]} 11. Bf4 {[%emt 0:01:02]} Nf8 {[%emt 0:01:51]} 12. Rac1 {[%emt 0:02:30]} Be6 {[%emt 0:03:31]} 13. h3 {[%emt 0:03:16]} Bd6 {[%emt 0:04:04]} 14. Ne2 {[%emt 0:03:45]} Ne4 {[%emt 0:04:07]} 15. Ne5 {[%emt 0:02:33]} f6 {[%emt 0:05:12]} 16. Bxe4 {[%emt 0:02:14]} dxe4 {[%emt 0:02:54]} 17. Nc4 {[%emt 0:01:16]} Bxf4 {[%emt 0:01:16]} 18. Nxf4 {[%emt 0:00:23]} Bf7 {[%emt 0:01:09]} 19. Nd2 {[%emt 0:01:17]} f5 {[%emt 0:01:18]} 20. Nc4 {[%emt 0:01:04]} g5 {[%emt 0:02:12]} 21. Ne2 {[%emt 0:01:53]} Ng6 {[%emt 0:02:47]} 22. f3 {[%emt 0:02:05]} exf3 {[%emt 0:03:37]} 23. Qxf5 {[%emt 0:00:55]} Nh4 {[%emt 0:00:10]} 24. Qc2 {[%emt 0:03:21]} fxe2 {[%emt 0:02:28]} 25. Qxe2 {[%emt 0:01:24]} Bd5 {[%emt 0:02:21]} 26. g3 {[%emt 0:01:26]} Qc7 {[%emt 0:00:33]} 27. Qg4 {[%emt 0:01:49]} Re4 {[%emt 0:00:19]} 28. Qxe4 {[%emt 0:01:45]} Qxg3+ {[%emt 0:00:09]} 29. Qg2 {[%emt 0:00:10]} Qxg2# {[%emt 0:00:06]} 0-1